fUST/lending_fUST_20250209
["ID","MTS","AMOUNT","RATE_DAILY","PERIOD"]
[352347534,1739051439946,-500.0,0.00011095,2]
[352347536,1739051439956,-642.09,0.00011095,2]
[352347538,1739051439965,-500.0,0.00011095,2]
[352347540,1739051439974,-636.61,0.00011095,2]
[352347541,1739051439984,-500.0,0.00011095,2]
[352347543,1739051439994,-500.0,0.00011095,2]
[352347546,1739051440004,-190.74,0.00011095,2]
[352347548,1739051440013,-500.0,0.00011095,2]
[352347550,1739051440023,-500.0,0.00011095,2]
[352347552,1739051440032,-500.0,0.00011095,2]
[352347554,1739051440042,-500.0,0.00011095,2]
[352347556,1739051440051,-500.0,0.00011095,2]
[352347558,1739051440060,-500.0,0.00011095,2]
[352347560,1739051440069,-500.0,0.00011095,2]
[352347562,1739051440078,-500.0,0.00011095,2]
[352347564,1739051440087,-500.0,0.00011095,2]
[352347566,1739051440096,-500.0,0.00011095,2]
[352347567,1739051440108,-500.0,0.00011095,2]
[352347569,1739051440119,-500.0,0.00011095,2]
[352347572,1739051440128,-695.68,0.00011095,2]
[352347574,1739051440137,-500.0,0.00011095,2]
[352347575,1739051440146,-500.0,0.00011095,2]
[352347577,1739051440156,-500.0,0.00011095,2]
[352347579,1739051440165,-500.0,0.00011095,2]
[352347582,1739051440175,-500.0,0.00011095,2]
[352347584,1739051440185,-500.0,0.00011095,2]
[352347586,1739051440195,-500.0,0.00011095,2]
[352347588,1739051440205,-500.0,0.00011095,2]
[352347590,1739051440214,-500.0,0.00011095,2]
[352347592,1739051440224,-500.0,0.00011095,2]
[352347594,1739051440235,-506.8853489,0.00011095,2]
[352347596,1739051440247,-500.0,0.00011095,2]
[352347597,1739051440259,-500.0,0.00011095,2]
[352347599,1739051440268,-500.0,0.00011095,2]
[352347602,1739051440279,-500.0,0.00011095,2]
[352347603,1739051440288,-559.07,0.00011095,2]
[352347605,1739051440297,-644.22468862,0.00011095,2]
[352347607,1739051440307,-500.0,0.00011095,2]
[352347610,1739051440316,-500.0,0.00011095,2]
[352347612,1739051440326,-202.54858333,0.00011095,2]
[352347614,1739051440335,-500.0,0.00011095,2]
[352347616,1739051440345,-500.0,0.00011095,2]
[352347618,1739051440354,-500.0,0.00011095,2]
[352347619,1739051440363,-500.0,0.00011095,2]
[352347621,1739051440372,-752.57,0.00011095,2]
[352347623,1739051440381,-500.0,0.00011095,2]
[352347625,1739051440391,-500.0,0.00011095,2]
[352347627,1739051440400,-500.0,0.00011095,2]
[352347629,1739051440409,-500.0,0.00011095,2]
[352347631,1739051440419,-500.0,0.00011095,2]
[352347633,1739051440428,-500.0,0.00011095,2]
[352347635,1739051440437,-500.0,0.00011095,2]
[352347637,1739051440446,-500.0,0.00011095,2]
[352347639,1739051440456,-500.0,0.00011095,2]
[352347641,1739051440465,-500.0,0.00011095,2]
[352347643,1739051440474,-800.39,0.00011095,2]
[352347645,1739051440484,-500.0,0.00011095,2]
[352347647,1739051440494,-500.0,0.00011095,2]
[352347649,1739051440505,-500.0,0.00011095,2]
[352347651,1739051440514,-500.0,0.00011095,2]
[352347654,1739051440523,-2446.56,0.00011095,2]
[352347655,1739051440532,-500.0,0.00011095,2]
[352347658,1739051440542,-677.79,0.00011095,2]
[352347660,1739051440551,-561.64264187,0.00011095,2]
[352347662,1739051440560,-502.7,0.00011095,2]
[352347664,1739051440570,-500.0,0.00011095,2]
[352347666,1739051440579,-1397.58,0.00011095,2]
[352347667,1739051440588,-1068.86,0.00011095,2]
[352347669,1739051440598,-1048.38,0.00011095,2]
[352347687,1739051440751,-500.0,0.00011095,2]
[352347689,1739051440762,-500.0,0.00011095,2]
[352347692,1739051440771,-500.0,0.00011095,2]
[352347693,1739051440781,-500.0,0.00011095,2]
[352347695,1739051440791,-998.99,0.00011095,2]
[352347698,1739051440801,-500.0,0.00011095,2]
[352347700,1739051440810,-500.0,0.00011095,2]
[352347701,1739051440819,-934.86,0.00011095,2]
[352347703,1739051440828,-205.52476633,0.00011095,2]
[352347705,1739051440838,-2808.06,0.00011095,2]
[352347708,1739051440847,-500.0,0.00011095,2]
[352347709,1739051440857,-500.0,0.00011095,2]
[352347711,1739051440867,-500.0,0.00011095,2]
[352347713,1739051440877,-500.0,0.00011095,2]
[352347714,1739051440886,-500.0,0.00011095,2]
[352347715,1739051440895,-500.0,0.00011095,2]
[352347716,1739051440904,-605.56,0.00011095,2]
[352347717,1739051440913,-500.0,0.00011095,2]
[352347718,1739051440923,-845.95,0.00011095,2]
[352347719,1739051440932,-500.0,0.00011095,2]
[352347720,1739051440941,-500.0,0.00011095,2]
[352347721,1739051440950,-500.0,0.00011095,2]
[352347722,1739051440959,-500.0,0.00011095,2]
[352347723,1739051440968,-500.0,0.00011095,2]
[352347724,1739051440977,-553.17055382,0.00011095,2]
[352347725,1739051440986,-1064.87,0.00011095,2]
[352347726,1739051440995,-500.0,0.00011095,2]
[352347727,1739051441005,-500.0,0.00011095,2]
[352347728,1739051441015,-500.0,0.00011095,2]
[352347729,1739051441024,-500.0,0.00011095,2]
[352347730,1739051441033,-500.0,0.00011095,2]
[352347732,1739051441048,-500.0,0.00011095,2]
[352347734,1739051441058,-500.0,0.00011095,2]
[352347736,1739051441069,-500.0,0.00011095,2]
[352347738,1739051441078,-500.0,0.00011095,2]
[352347740,1739051441088,-500.0,0.00011095,2]
[352347742,1739051441097,-500.0,0.00011095,2]
[352347744,1739051441107,-500.0,0.00011095,2]
[352347745,1739051441121,-2122.42,0.00011095,2]
[352347747,1739051441131,-709.51,0.00011095,2]
[352347749,1739051441140,-500.0,0.00011095,2]
[352347752,1739051441150,-500.0,0.00011095,2]
[352347754,1739051441162,-5169.13,0.00011095,2]
[352347755,1739051441172,-500.0,0.00011095,2]
[352347757,1739051441184,-500.0,0.00011095,2]
[352347759,1739051441196,-500.0,0.00011095,2]
[352347761,1739051441206,-974.0,0.00011095,2]
[352347763,1739051441215,-471.4,0.00011095,2]
[352347765,1739051441225,-500.0,0.00011095,2]
[352347767,1739051441235,-500.0,0.00011095,2]
[352347769,1739051441248,-500.0,0.00011095,2]
[352347771,1739051441259,-591.08176997,0.00011095,2]
[352347774,1739051441270,-1984.37,0.00011095,2]
[352347776,1739051441279,-500.0,0.00011095,2]
[352347777,1739051441288,-9106.06,0.00011095,2]
[352347780,1739051441297,-500.0,0.00011095,2]
[352347782,1739051441307,-2123.8,0.00011095,2]
[352347783,1739051441318,-500.0,0.00011095,2]
[352347785,1739051441327,-986.2,0.00011095,2]
[352347788,1739051441336,-500.0,0.00011095,2]
[352347790,1739051441346,-500.0,0.00011095,2]
[352347792,1739051441356,-655.78,0.00011095,2]
[352347793,1739051441365,-500.0,0.00011095,2]
[352347795,1739051441374,-500.0,0.00011095,2]
[352347797,1739051441383,-500.0,0.00011095,2]
[352347799,1739051441392,-500.0,0.00011095,2]
[352347801,1739051441402,-500.0,0.00011095,2]
[352347803,1739051441411,-500.0,0.00011095,2]
[352347805,1739051441421,-2020.77,0.00011095,2]
[352347807,1739051441430,-500.0,0.00011095,2]
[352347809,1739051441439,-500.0,0.00011095,2]
[352347811,1739051441449,-500.0,0.00011095,2]
[352347813,1739051441458,-871.32,0.00011095,2]
[352347815,1739051441467,-500.0,0.00011095,2]
[352347817,1739051441477,-500.0,0.00011095,2]
[352347819,1739051441486,-500.0,0.00011095,2]
[352347821,1739051441495,-500.0,0.00011095,2]
[352347823,1739051441506,-500.0,0.00011095,2]
[352347825,1739051441515,-1773.38,0.00011095,2]
[352347827,1739051441525,-500.0,0.00011095,2]
[352347829,1739051441534,-500.0,0.00011095,2]
[352347831,1739051441543,-500.0,0.00011095,2]
[352347833,1739051441552,-500.0,0.00011095,2]
[352347835,1739051441562,-500.0,0.00011095,2]
[352347837,1739051441571,-500.0,0.00011095,2]
[352347839,1739051441580,-500.0,0.00011095,2]
[352347841,1739051441589,-500.0,0.00011095,2]
[352347843,1739051441599,-356.13866016,0.00011095,2]
[352347845,1739051441608,-500.0,0.00011095,2]
[352347848,1739051441620,-904.63,0.00011095,2]
[352347850,1739051441629,-715.99,0.00011095,2]
[352347852,1739051441638,-500.0,0.00011095,2]
[352347854,1739051441647,-500.0,0.00011095,2]
[352347855,1739051441656,-500.0,0.00011095,2]
[352347857,1739051441665,-500.0,0.00011095,2]
[352347859,1739051441674,-500.0,0.00011095,2]
[352347861,1739051441683,-500.0,0.00011095,2]
[352347863,1739051441692,-1039.13,0.00011095,2]
[352347865,1739051441701,-500.0,0.00011095,2]
[352347867,1739051441710,-1859.68,0.00011095,2]
[352347869,1739051441719,-642.4,0.00011095,2]
[352347871,1739051441728,-500.0,0.00011095,2]
[352347873,1739051441737,-500.0,0.00011095,2]
[352347875,1739051441746,-509.33,0.00011095,2]
[352347877,1739051441758,-500.0,0.00011095,2]
[352347879,1739051441767,-500.0,0.00011095,2]
[352347881,1739051441776,-2869.44,0.00011095,2]
[352347883,1739051441786,-500.0,0.00011095,2]
[352347885,1739051441795,-500.0,0.00011095,2]
[352347887,1739051441804,-22135.45,0.00011095,2]
[352347889,1739051441813,-500.0,0.00011095,2]
[352347891,1739051441823,-500.0,0.00011095,2]
[352347893,1739051441832,-10167.05,0.00011095,2]
[352347895,1739051441841,-354.7727591,0.000111,2]
[352347897,1739051441851,-354.7727591,0.000111,2]
[352347899,1739051441860,-155.216,0.0001119,2]
[352347901,1739051441869,-354.7727591,0.000112,2]
[352347903,1739051441878,-354.7727591,0.000112,2]
[352347905,1739051441887,-354.7727591,0.000112,2]
[352347907,1739051441897,-902.71,0.0001123,2]
[352347909,1739051441907,-902.71,0.00011231,2]
[352347911,1739051441917,-902.71,0.00011231,2]
[352347913,1739051441926,-902.71,0.00011231,2]
[352347915,1739051441936,-902.71,0.00011231,2]
[352347917,1739051441945,-902.71,0.00011231,2]
[352347919,1739051441955,-902.71,0.00011231,2]
[352347921,1739051441964,-902.71,0.00011231,2]
[352347923,1739051441974,-902.88591863,0.00011231,2]
[352347925,1739051441983,-281.99002132,0.00011232,2]
[352347927,1739051441992,-500.0,0.00011232,2]
[352347929,1739051442002,-500.0,0.00011232,2]
[352347931,1739051442010,-500.0,0.00011232,2]
[352347933,1739051442019,-500.0,0.00011232,2]
[352347935,1739051442028,-500.0,0.00011232,2]
[352347937,1739051442037,-500.0,0.00011232,2]
[352347939,1739051442046,-500.0,0.00011232,2]
[352347941,1739051442055,-761.77,0.00011232,2]
[352347943,1739051442065,-798.57,0.00011232,2]
[352347945,1739051442074,-500.0,0.00011232,2]
[352347947,1739051442083,-500.0,0.00011232,2]
[352347949,1739051442092,-338.75832834,0.00011232,2]
[352347951,1739051442101,-500.0,0.00011232,2]
[352347953,1739051442113,-500.0,0.00011232,2]
[352347955,1739051442122,-735.1,0.00011232,2]
[352347957,1739051442131,-500.0,0.00011232,2]
[352347959,1739051442140,-555.46,0.00011232,2]
[352347961,1739051442150,-500.0,0.00011232,2]
[352347963,1739051442160,-500.0,0.00011232,2]
[352347965,1739051442169,-500.0,0.00011232,2]
[352347967,1739051442178,-500.0,0.00011232,2]
[352347969,1739051442188,-500.0,0.00011232,2]
[352347971,1739051442198,-642.09,0.00011232,2]
[352347973,1739051442208,-500.0,0.00011232,2]
[352347975,1739051442217,-250.27580523,0.00011232,2]
[352347977,1739051442227,-604.87222016,0.00011232,2]
[352347979,1739051442236,-500.0,0.00011232,2]
[352347981,1739051442245,-500.0,0.00011232,2]
[352347983,1739051442255,-500.0,0.00011232,2]
[352347985,1739051442265,-500.0,0.00011232,2]
[352347987,1739051442274,-500.0,0.00011232,2]
[352347989,1739051442284,-500.0,0.00011232,2]
[352347990,1739051442295,-500.0,0.00011232,2]
[352347994,1739051442306,-500.0,0.00011232,2]
[352347996,1739051442317,-695.68,0.00011232,2]
[352347999,1739051442326,-500.0,0.00011232,2]
[352348002,1739051442336,-500.0,0.00011232,2]
[352348005,1739051442345,-500.0,0.00011232,2]
[352348008,1739051442357,-500.0,0.00011232,2]
[352348011,1739051442370,-500.0,0.00011232,2]
[352348014,1739051442379,-500.0,0.00011232,2]
[352348016,1739051442389,-500.0,0.00011232,2]
[352348019,1739051442398,-500.0,0.00011232,2]
[352348022,1739051442408,-500.0,0.00011232,2]
[352348025,1739051442419,-500.0,0.00011232,2]
[352348029,1739051442429,-500.0,0.00011232,2]
[352348031,1739051442439,-559.07,0.00011232,2]
[352348034,1739051442449,-446.16262195,0.00011232,2]
[352348037,1739051442459,-500.0,0.00011232,2]
[352348040,1739051442468,-500.0,0.00011232,2]
[352348042,1739051442478,-500.0,0.00011232,2]
[352348045,1739051442487,-752.57,0.00011232,2]
[352348047,1739051442496,-500.0,0.00011232,2]
[352348048,1739051442505,-500.0,0.00011232,2]
[352348050,1739051442514,-500.0,0.00011232,2]
[352348052,1739051442523,-227.60640928,0.00011232,2]
[352348054,1739051442533,-500.0,0.00011232,2]
[352348057,1739051442548,-800.39,0.00011232,2]
[352348059,1739051442559,-500.0,0.00011232,2]
[352348061,1739051442569,-500.0,0.00011232,2]
[352348063,1739051442578,-474.58636919,0.00011232,2]
[352348064,1739051442588,-500.0,0.00011232,2]
[352348066,1739051442597,-2446.56,0.00011232,2]
[352348068,1739051442606,-500.0,0.00011232,2]
[352348070,1739051442615,-677.79,0.00011232,2]
[352348072,1739051442626,-502.7,0.00011232,2]
[352348074,1739051442637,-1397.58,0.00011232,2]
[352348076,1739051442649,-1068.86,0.00011232,2]
[352348078,1739051442660,-1048.38,0.00011232,2]
[352348080,1739051442670,-500.0,0.00011232,2]
[352348082,1739051442681,-500.0,0.00011232,2]
[352348084,1739051442692,-500.0,0.00011232,2]
[352348086,1739051442701,-500.0,0.00011232,2]
[352348088,1739051442712,-998.99,0.00011232,2]
[352348091,1739051442722,-500.0,0.00011232,2]
[352348093,1739051442731,-500.0,0.00011232,2]
[352348094,1739051442740,-934.86,0.00011232,2]
[352348096,1739051442750,-2808.06,0.00011232,2]
[352348098,1739051442764,-500.0,0.00011232,2]
[352348101,1739051442780,-500.0,0.00011232,2]
[352348102,1739051442791,-500.0,0.00011232,2]
[352348104,1739051442801,-605.56,0.00011232,2]
[352348106,1739051442812,-500.0,0.00011232,2]
[352348108,1739051442822,-845.95,0.00011232,2]
[352348110,1739051442831,-500.0,0.00011232,2]
[352348113,1739051442840,-500.0,0.00011232,2]
[352348114,1739051442850,-500.0,0.00011232,2]
[352348116,1739051442859,-500.0,0.00011232,2]
[352348118,1739051442869,-1064.87,0.00011232,2]
[352348120,1739051442878,-500.0,0.00011232,2]
[352348122,1739051442887,-500.0,0.00011232,2]
[352348124,1739051442897,-500.0,0.00011232,2]
[352348126,1739051442906,-401.88639281,0.00011232,2]
[352348128,1739051442915,-500.0,0.00011232,2]
[352348130,1739051442924,-500.0,0.00011232,2]
[352348132,1739051442934,-500.0,0.00011232,2]
[352348134,1739051442943,-500.0,0.00011232,2]
[352348136,1739051442953,-500.0,0.00011232,2]
[352348138,1739051442963,-500.0,0.00011232,2]
[352348140,1739051442973,-2122.42,0.00011232,2]
[352348142,1739051442982,-709.51,0.00011232,2]
[352348144,1739051442992,-500.0,0.00011232,2]
[352348146,1739051443003,-500.0,0.00011232,2]
[352348148,1739051443013,-5169.13,0.00011232,2]
[352348150,1739051443023,-500.0,0.00011232,2]
[352348152,1739051443033,-500.0,0.00011232,2]
[352348154,1739051443042,-500.0,0.00011232,2]
[352348156,1739051443051,-974.0,0.00011232,2]
[352348158,1739051443061,-500.0,0.00011232,2]
[352348160,1739051443071,-1984.37,0.00011232,2]
[352348162,1739051443080,-500.0,0.00011232,2]
[352348164,1739051443089,-9106.06,0.00011232,2]
[352348166,1739051443099,-500.0,0.00011232,2]
[352348168,1739051443110,-2123.8,0.00011232,2]
[352348170,1739051443121,-500.0,0.00011232,2]
[352348172,1739051443130,-986.2,0.00011232,2]
[352348174,1739051443139,-500.0,0.00011232,2]
[352348176,1739051443149,-655.78,0.00011232,2]
[352348178,1739051443158,-500.0,0.00011232,2]
[352348181,1739051443168,-500.0,0.00011232,2]
[352348183,1739051443177,-500.0,0.00011232,2]
[352348185,1739051443187,-500.0,0.00011232,2]
[352348187,1739051443197,-500.0,0.00011232,2]
[352348189,1739051443207,-2020.77,0.00011232,2]
[352348191,1739051443217,-500.0,0.00011232,2]
[352348193,1739051443226,-871.32,0.00011232,2]
[352348195,1739051443235,-500.0,0.00011232,2]
[352348197,1739051443245,-500.0,0.00011232,2]
[352348199,1739051443255,-1773.38,0.00011232,2]
[352348201,1739051443265,-500.0,0.00011232,2]
[352348203,1739051443274,-500.0,0.00011232,2]
[352348205,1739051443284,-500.0,0.00011232,2]
[352348207,1739051443293,-500.0,0.00011232,2]
[352348209,1739051443302,-500.0,0.00011232,2]
[352348211,1739051443312,-602.70887955,0.00011232,2]
[352348213,1739051443322,-500.0,0.00011232,2]
[352348215,1739051443331,-500.0,0.00011232,2]
[352348217,1739051443340,-500.0,0.00011232,2]
[352348219,1739051443349,-904.63,0.00011232,2]
[352348221,1739051443358,-715.99,0.00011232,2]
[352348223,1739051443368,-500.0,0.00011232,2]
[352348225,1739051443377,-500.0,0.00011232,2]
[352348227,1739051443386,-500.0,0.00011232,2]
[352348229,1739051443395,-457.57404294,0.00011232,2]
[352348231,1739051443404,-1039.13,0.00011232,2]
[352348233,1739051443414,-500.0,0.00011232,2]
[352348235,1739051443424,-1859.68,0.00011232,2]
[352348237,1739051443433,-642.4,0.00011232,2]
[352348238,1739051443444,-500.0,0.00011232,2]
[352348240,1739051443453,-500.0,0.00011232,2]
[352348242,1739051443462,-509.33,0.00011232,2]
[352348244,1739051443472,-500.0,0.00011232,2]
[352348245,1739051443481,-500.0,0.00011232,2]
[352348246,1739051443491,-2869.44,0.00011232,2]
[352348247,1739051443500,-500.0,0.00011232,2]
[352348248,1739051443510,-500.0,0.00011232,2]
[352348250,1739051443519,-22135.45,0.00011232,2]
[352348252,1739051443529,-500.0,0.00011232,2]
[352348254,1739051443538,-500.0,0.00011232,2]
[352348256,1739051443547,-10167.05,0.00011232,2]
[352348258,1739051443557,-153.0,0.000113,2]
[352348260,1739051443566,-153.0,0.000113,2]
[352348262,1739051443576,-153.0,0.000113,2]
[352348264,1739051443585,-153.0,0.000113,2]
[352348266,1739051443594,-13265.39216455,0.00011309,2]
[352348268,1739051443603,-151.0,0.00011369,2]
[352348270,1739051443613,-151.0,0.00011369,2]
[352348272,1739051443622,-151.0,0.00011369,2]
[352348274,1739051443631,-151.0,0.00011369,2]
[352348276,1739051443640,-500.0,0.00011369,2]
[352348278,1739051443649,-443.388756,0.00011369,2]
[352348280,1739051443658,-443.388756,0.00011369,2]
[352348282,1739051443668,-500.0,0.00011369,2]
[352348284,1739051443677,-500.0,0.00011369,2]
[352348286,1739051443686,-500.0,0.00011369,2]
[352348288,1739051443696,-500.0,0.00011369,2]
[352348290,1739051443705,-500.0,0.00011369,2]
[352348292,1739051443714,-761.77,0.00011369,2]
[352348294,1739051443724,-798.57,0.00011369,2]
[352348296,1739051443733,-500.0,0.00011369,2]
[352348298,1739051443742,-619.4229768,0.00011369,2]
[352348300,1739051443752,-500.0,0.00011369,2]
[352348302,1739051443762,-500.0,0.00011369,2]
[352348304,1739051443772,-735.1,0.00011369,2]
[352348306,1739051443781,-555.46,0.00011369,2]
[352348308,1739051443791,-221.71,0.00011369,2]
[352348310,1739051443801,-500.0,0.00011369,2]
[352348312,1739051443810,-500.0,0.00011369,2]
[352348314,1739051443822,-500.0,0.00011369,2]
[352348316,1739051443832,-642.09,0.00011369,2]
[352348318,1739051443842,-500.0,0.00011369,2]
[352348320,1739051443852,-500.0,0.00011369,2]
[352348322,1739051443861,-500.0,0.00011369,2]
[352348324,1739051443871,-500.0,0.00011369,2]
[352348326,1739051443880,-500.0,0.00011369,2]
[352348328,1739051443889,-500.0,0.00011369,2]
[352348330,1739051443898,-500.0,0.00011369,2]
[352348332,1739051443908,-500.0,0.00011369,2]
[352348334,1739051443918,-500.0,0.00011369,2]
[352348336,1739051443927,-695.68,0.00011369,2]
[352348338,1739051443936,-500.0,0.00011369,2]
[352348340,1739051443945,-500.0,0.00011369,2]
[352348342,1739051443954,-515.61803568,0.00011369,2]
[352348344,1739051443964,-524.34,0.00011369,2]
[352348346,1739051443973,-500.0,0.00011369,2]
[352348348,1739051443982,-500.0,0.00011369,2]
[352348350,1739051443992,-500.0,0.00011369,2]
[352348352,1739051444002,-500.0,0.00011369,2]
[352348355,1739051444012,-500.0,0.00011369,2]
[352348357,1739051444021,-500.0,0.00011369,2]
[352348358,1739051444030,-500.0,0.00011369,2]
[352348360,1739051444039,-559.07,0.00011369,2]
[352348362,1739051444048,-500.0,0.00011369,2]
[352348364,1739051444057,-752.57,0.00011369,2]
[352348366,1739051444066,-500.0,0.00011369,2]
[352348368,1739051444077,-151.0,0.00011369,2]
[352348370,1739051444086,-495.32141906,0.00011369,2]
[352348372,1739051444096,-800.39,0.00011369,2]
[352348374,1739051444107,-500.0,0.00011369,2]
[352348376,1739051444121,-500.0,0.00011369,2]
[352348378,1739051444130,-500.0,0.00011369,2]
[352348381,1739051444140,-2446.56,0.00011369,2]
[352348383,1739051444150,-500.0,0.00011369,2]
[352348385,1739051444160,-677.79,0.00011369,2]
[352348387,1739051444169,-502.7,0.00011369,2]
[352348389,1739051444179,-1397.58,0.00011369,2]
[352348391,1739051444189,-1068.86,0.00011369,2]
[352348393,1739051444199,-1048.38,0.00011369,2]
[352348395,1739051444209,-500.0,0.00011369,2]
[352348397,1739051444218,-500.0,0.00011369,2]
[352348399,1739051444227,-500.0,0.00011369,2]
[352348400,1739051444236,-998.99,0.00011369,2]
[352348403,1739051444246,-500.0,0.00011369,2]
[352348405,1739051444256,-500.0,0.00011369,2]
[352348407,1739051444266,-934.86,0.00011369,2]
[352348409,1739051444276,-2808.06,0.00011369,2]
[352348411,1739051444286,-500.0,0.00011369,2]
[352348413,1739051444295,-500.0,0.00011369,2]
[352348415,1739051444305,-500.0,0.00011369,2]
[352348416,1739051444314,-605.56,0.00011369,2]
[352348418,1739051444323,-845.95,0.00011369,2]
[352348420,1739051444333,-500.0,0.00011369,2]
[352348423,1739051444343,-500.0,0.00011369,2]
[352348425,1739051444353,-500.0,0.00011369,2]
[352348427,1739051444362,-500.0,0.00011369,2]
[352348429,1739051444371,-1064.87,0.00011369,2]
[352348431,1739051444380,-500.0,0.00011369,2]
[352348433,1739051444390,-500.0,0.00011369,2]
[352348435,1739051444399,-500.0,0.00011369,2]
[352348437,1739051444408,-500.0,0.00011369,2]
[352348454,1739051444417,-500.0,0.00011369,2]
[352348456,1739051444579,-500.0,0.00011369,2]
[352348459,1739051444589,-151.0,0.00011369,2]
[352348461,1739051444599,-694.451646,0.00011369,2]
[352348462,1739051444608,-684.76227,0.00011369,2]
[352348465,1739051444618,-694.451646,0.00011369,2]
[352348467,1739051444627,-2122.42,0.00011369,2]
[352348469,1739051444636,-684.76227,0.00011369,2]
[352348471,1739051444646,-709.51,0.00011369,2]
[352348473,1739051444655,-500.0,0.00011369,2]
[352348475,1739051444664,-5169.13,0.00011369,2]
[352348477,1739051444674,-500.0,0.00011369,2]
[352348479,1739051444683,-500.0,0.00011369,2]
[352348481,1739051444692,-151.0,0.00011369,2]
[352348483,1739051444702,-974.0,0.00011369,2]
[352348485,1739051444711,-500.0,0.00011369,2]
[352348487,1739051444721,-1984.37,0.00011369,2]
[352348489,1739051444730,-500.0,0.00011369,2]
[352348491,1739051444739,-9106.06,0.00011369,2]
[352348493,1739051444749,-2123.8,0.00011369,2]
[352348495,1739051444760,-500.0,0.00011369,2]
[352348497,1739051444769,-986.2,0.00011369,2]
[352348499,1739051444779,-500.0,0.00011369,2]
[352348501,1739051444788,-655.78,0.00011369,2]
[352348503,1739051444798,-640.46975893,0.00011369,2]
[352348505,1739051444807,-500.0,0.00011369,2]
[352348507,1739051444817,-500.0,0.00011369,2]
[352348509,1739051444827,-500.0,0.00011369,2]
[352348511,1739051444838,-2020.77,0.00011369,2]
[352348513,1739051444847,-234.330254,0.00011369,2]
[352348515,1739051444857,-500.0,0.00011369,2]
[352348517,1739051444867,-871.32,0.00011369,2]
[352348519,1739051444877,-500.0,0.00011369,2]
[352348522,1739051444888,-234.330254,0.00011369,2]
[352348523,1739051444898,-500.0,0.00011369,2]
[352348525,1739051444908,-1773.38,0.00011369,2]
[352348527,1739051444918,-500.0,0.00011369,2]
[352348530,1739051444928,-500.0,0.00011369,2]
[352348532,1739051444937,-500.0,0.00011369,2]
[352348534,1739051444947,-500.0,0.00011369,2]
[352348536,1739051444956,-500.0,0.00011369,2]
[352348538,1739051444966,-174.103427,0.00011369,2]
[352348540,1739051444975,-500.0,0.00011369,2]
[352348542,1739051444984,-500.0,0.00011369,2]
[352348544,1739051444994,-904.63,0.00011369,2]
[352348546,1739051445004,-715.99,0.00011369,2]
[352348548,1739051445014,-500.0,0.00011369,2]
[352348550,1739051445025,-500.0,0.00011369,2]
[352348552,1739051445036,-1039.13,0.00011369,2]
[352348554,1739051445045,-1859.68,0.00011369,2]
[352348556,1739051445055,-642.4,0.00011369,2]
[352348558,1739051445064,-500.0,0.00011369,2]